Workbook

Sheet ДМШ
C1: Кол-во детей | D1: Общее количество педагогов | E1: Кол-во педагогов, имеющие высшую и первую кв.кактегории | F1: доля | G1: балл | H1: место | I1: Участие педагогов в проф.конкурсах | W1: Выступление педагогов на семинарах, конференциях | AK1: Методические семинары, конференции, проводимые на базе учреждения | AY1: Участие ОО в конкурсах ОО | BG1: Грантовая активность | BK1: Доступность и открытость | BP1: Безопасные условия | BT1: Обеспечение образовательного процесса | CA1: Результаты воспитанников | CO1: Городские меропряития | CV1: Организация и проведение мероприятий самим учреждением, в том числе праздники дворов, открытие новогодних ёлок | DC1: Эффективность управления
A2: район | B2: Учреждение | I2: городской | J2: доля | K2: балл | L2: Республиканский | M2: доля | N2: балл | O2: Всероссийский | P2: доля | Q2: балл | R2: Международный | S2: доля | T2: балл | U2: итоговый балл | V2: место | W2: городской | X2: доля | Y2: балл | Z2: Республиканский | AA2: доля | AB2: балл | AC2: Всероссийский | AD2: доля | AE2: балл | AF2: Международный | AG2: доля | AH2: балл | AI2: итоговый балл | AJ2: место | AK2: городской | AL2: доля | AM2: балл | AN2: Республиканский | AO2: доля | AP2: балл | AQ2: Всероссийский | AR2: доля | AS2: балл | AT2: Международный | AU2: доля | AV2: балл | AW2: итоговый балл | AX2: место | AY2: Республиканский | AZ2: балл | BA2: Всероссийский | BB2: балл | BC2: Международный | BD2: балл | BE2: итоговый балл | BF2: место | BG2: Учреждения | BH2: Педагогов | BI2: балл | BJ2: место | BK2: Наличие публичного отчета | BL2: Наличие финансового отчета | BM2: Наличие оперативной информации | BN2: балл | BO2: место | BP2: Налииче детского травматизма | BQ2: Наличие взрослого травматизма | BR2: балл | BS2: место | BT2: Кол-во детей-инвалидов, ОВЗ | BU2: Доля детей-инвалидов, ОВЗ | BV2: балл | BW2: Наличие адаптированной программы | BX2: балл | BY2: иттговый балл | BZ2: место | CA2: городской | CB2: доля | CC2: балл | CD2: Республиканский | CE2: доля | CF2: балл | CG2: Всероссийский | CH2: доля | CI2: балл | CJ2: Международный | CK2: доля | CL2: балл | CM2: итоговый балл | CN2: место | CO2: НВП | CP2: 9 Мая | CQ2: День защиты детей | CR2: день города и РТ | CS2: Иные городские мероприятия | CT2: Балл | CU2: место | CV2: Район | CW2: Город | CX2: Республика | CY2: Всероссийский | CZ2: Балл | DA2: Место | DB2: Объем средств, привлеченных за счет оказания платных услуг | DC2: объем средств из расчета на 1 чел. | DD2: балл | DE2: Наличие жалоб | DF2: Наличие дисциплинарных взысканий | DG2: балл | DH2: место | DI2: итоговые баллы | DJ2: рейтинг
A4: Авиа | B4: ЦВР | C4: 1390 | D4: 23 | E4: 13 | F4: =E4*100/D4 -> 57 | G4: 3 | H4: 1 | I4: 10 | J4: =I4*100/D4 -> 43.5 | K4: =J4*2 -> 86.95652174 | L4: 32 | M4: =L4*100/D4 -> 139.1304348 | N4: =M4*2 -> 278.2608696 | O4: 44 | P4: =O4*100/D4 -> 191.3043478 | Q4: =P4*3 -> 573.9130435 | R4: 17 | S4: =R4*100/D4 -> 73.91304348 | T4: =S4*3 -> 221.7391304 | U4: =K4+N4+Q4+T4 -> 1160.9 | V4: 1 | W4: 7 | X4: =W4*100/D4 -> 30.43478261 | Y4: =X4*2 -> 60.86956522 | Z4: 21 | AA4: =Z4*100/D4 -> 91.30434783 | AB4: =AA4*2 -> 182.6086957 | AC4: 138 | AD4: =AC4*100/D4 -> 600 | AE4: =AD4*3 -> 1800 | AF4: 72 | AG4: =AF4*100/D4 -> 313.0434783 | AH4: =AG4*3 -> 939.1304348 | AI4: =Y4+AB4+AE4+AH4 -> 2982.608696 | AJ4: 1 | AK4: 5 | AL4: =AK4*100/D4 -> 21.73913043 | AM4: =AL4*2 -> 43.47826087 | AN4: 2 | AO4: =AN4*100/D4 -> 8.695652174 | AP4: =AO4*2 -> 17.39130435 | AQ4: 1 | AR4: =AQ4*100/D4 -> 4.347826087 | AS4: =AR4*3 -> 13.04347826 | AT4: 1 | AU4: =AT4*100/D4 -> 4.347826087 | AV4: =AU4*3 -> 13.04347826 | AW4: =AM4+AP4+AS4+AV4 -> 86.95652174 | AX4: 4 | AY4: 0 | AZ4: =AY4*2 -> 0 | BA4: 8 | BB4: =BA4*3 -> 24 | BC4: 0 | BD4: =BC4*4 -> 0 | BE4: =AZ4+BB4+BD4 -> 24 | BF4: 2 | BG4: 0 | BH4: 3 | BI4: =BG4+BH4 -> 3 | BJ4: 6 | BK4: 1 | BL4: 1 | BM4: 1 | BN4: =BK4+BL4+BM4 -> 3 | BO4: 1 | BP4: 5 | BQ4: 5 | BR4: 5 | BS4: 1 | BT4: 0 | BU4: 0.0 | BV4: 0 | BW4: 0 | BX4: 0 | BY4: =BI4+BN4+BR4+BV4+BX4 -> 11 | BZ4: 7 | CA4: 0 | CB4: =CA4*100/C4 -> 0 | CC4: =CB4*2 -> 0 | CD4: 0 | CE4: =CD4*100/C4 -> 0 | CF4: =CE4*2 -> 0 | CG4: 0 | CH4: =CG4*100/C4 -> 0 | CI4: =CH4*3 -> 0 | CJ4: 0 | CK4: =CJ4*100/C4 -> 0 | CL4: =CK4*4 -> 0 | CM4: =CC4+CF4+CI4+CL4 -> 0.0 | CN4: 0 | CO4: 0 | CP4: 0 | CQ4: 5 | CR4: 5 | CS4: 5 | CT4: =CO4+CP4+CQ4+CR4+CS4 -> 15 | CU4: 11 | DC4: =DB4/C4 -> 0 | DD4: 0 | DE4: 0 | DF4: 0 | DG4: =DD4+DE4+DF4 -> 0 | DH4: 8 | DI4: =G4+U4+AI4+AW4+BE4+BY4+CM4+CT4+DG4 -> 4283 | DJ4: 1
A5: Вах | B5: ГДТТ им.А.Алиша | C5: 1390 | D5: 23 | E5: 13 | F5: =E5*100/D5 -> 57 | G5: 3 | H5: 1 | I5: 10 | J5: =I5*100/D5 -> 43.5 | K5: =J5*2 -> 86.95652174 | L5: 32 | M5: =L5*100/D5 -> 139.1304348 | N5: =M5*2 -> 278.2608696 | O5: 44 | P5: =O5*100/D5 -> 191.3043478 | Q5: =P5*3 -> 573.9130435 | R5: 17 | S5: =R5*100/D5 -> 73.91304348 | T5: =S5*3 -> 221.7391304 | U5: =K5+N5+Q5+T5 -> 1160.9 | V5: 1 | W5: 7 | X5: =W5*100/D5 -> 30.43478261 | Y5: =X5*2 -> 60.86956522 | Z5: 21 | AA5: =Z5*100/D5 -> 91.30434783 | AB5: =AA5*2 -> 182.6086957 | AC5: 138 | AD5: =AC5*100/D5 -> 600 | AE5: =AD5*3 -> 1800 | AF5: 72 | AG5: =AF5*100/D5 -> 313.0434783 | AH5: =AG5*3 -> 939.1304348 | AI5: =Y5+AB5+AE5+AH5 -> 2982.608696 | AJ5: 1 | AK5: 5 | AL5: =AK5*100/D5 -> 21.73913043 | AM5: =AL5*2 -> 43.47826087 | AN5: 2 | AO5: =AN5*100/D5 -> 8.695652174 | AP5: =AO5*2 -> 17.39130435 | AQ5: 1 | AR5: =AQ5*100/D5 -> 4.347826087 | AS5: =AR5*3 -> 13.04347826 | AT5: 1 | AU5: =AT5*100/D5 -> 4.347826087 | AV5: =AU5*3 -> 13.04347826 | AW5: =AM5+AP5+AS5+AV5 -> 86.95652174 | AX5: 4 | AY5: 0 | AZ5: =AY5*2 -> 0 | BA5: 8 | BB5: =BA5*3 -> 24 | BC5: 0 | BD5: =BC5*4 -> 0 | BE5: =AZ5+BB5+BD5 -> 24 | BF5: 2 | BG5: 0 | BH5: 3 | BI5: =BG5+BH5 -> 3 | BJ5: 6 | BK5: 1 | BL5: 1 | BM5: 1 | BN5: =BK5+BL5+BM5 -> 3 | BO5: 1 | BP5: 5 | BQ5: 5 | BR5: 5 | BS5: 1 | BT5: 0 | BU5: 0.0 | BV5: 0 | BW5: 0 | BX5: 0 | BY5: =BI5+BN5+BR5+BV5+BX5 -> 11 | BZ5: 7 | CA5: 0 | CB5: =CA5*100/C5 -> 0 | CC5: =CB5*2 -> 0 | CD5: 0 | CE5: =CD5*100/C5 -> 0 | CF5: =CE5*2 -> 0 | CG5: 0 | CH5: =CG5*100/C5 -> 0 | CI5: =CH5*3 -> 0 | CJ5: 0 | CK5: =CJ5*100/C5 -> 0 | CL5: =CK5*4 -> 0 | CM5: =CC5+CF5+CI5+CL5 -> 0.0 | CN5: 0 | CO5: 0 | CP5: 0 | CQ5: 5 | CR5: 5 | CS5: 5 | CT5: =CO5+CP5+CQ5+CR5+CS5 -> 15 | CU5: 11 | DC5: =DB5/C5 -> 0 | DD5: 0 | DE5: 0 | DF5: 0 | DG5: =DD5+DE5+DF5 -> 0 | DH5: 8 | DI5: =G5+U5+AI5+AW5+BE5+BY5+CM5+CT5+DG5 -> 4283 | DJ5: 1
A6: Вах | B6: ЦДТ | C6: 1390 | D6: 23 | E6: 13 | F6: 57 | G6: 3 | H6: 1 | I6: 10 | J6: 43.5 | K6: 86.95652174 | L6: 32 | M6: 139.1304348 | N6: 278.2608696 | O6: 44 | P6: 191.3043478 | Q6: 573.9130435 | R6: 17 | S6: 73.91304348 | T6: 221.7391304 | U6: 1160.9 | V6: 1 | W6: 7 | X6: 30.43478261 | Y6: 60.86956522 | Z6: 21 | AA6: 91.30434783 | AB6: 182.6086957 | AC6: 138 | AD6: 600 | AE6: 1800 | AF6: 72 | AG6: 313.0434783 | AH6: 939.1304348 | AI6: 2982.608696 | AJ6: 1 | AK6: 5 | AL6: 21.73913043 | AM6: 43.47826087 | AN6: 2 | AO6: 8.695652174 | AP6: 17.39130435 | AQ6: 1 | AR6: 4.347826087 | AS6: 13.04347826 | AT6: 1 | AU6: 4.347826087 | AV6: 13.04347826 | AW6: 86.95652174 | AX6: 4 | AY6: 0 | AZ6: 0 | BA6: 8 | BB6: 24 | BC6: 0 | BD6: 0 | BE6: 24 | BF6: 2 | BG6: 0 | BH6: 3 | BI6: 3 | BJ6: 6 | BK6: 1 | BL6: 1 | BM6: 1 | BN6: 3 | BO6: 1 | BP6: 5 | BQ6: 5 | BR6: 5 | BS6: 1 | BT6: 0 | BU6: 0.0 | BV6: 0 | BW6: 0 | BX6: 0 | BY6: 11 | BZ6: 7 | CA6: 0 | CB6: 0 | CC6: 0 | CD6: 0 | CE6: 0 | CF6: 0 | CG6: 0 | CH6: 0 | CI6: 0 | CJ6: 0 | CK6: 0 | CL6: 0 | CM6: 0.0 | CN6: 0 | CO6: 0 | CP6: 0 | CQ6: 5 | CR6: 5 | CS6: 5 | CT6: 15 | CU6: 11 | DC6: 0 | DD6: 0 | DE6: 0 | DF6: 0 | DG6: 0 | DH6: 8 | DI6: 4283 | DJ6: 1
A7: Вах | B7: Факел | C7: 1390 | D7: 23 | E7: 13 | F7: 57 | G7: 3 | H7: 1 | I7: 10 | J7: 43.5 | K7: 86.95652174 | L7: 32 | M7: 139.1304348 | N7: 278.2608696 | O7: 44 | P7: 191.3043478 | Q7: 573.9130435 | R7: 17 | S7: 73.91304348 | T7: 221.7391304 | U7: 1160.9 | V7: 1 | W7: 7 | X7: 30.43478261 | Y7: 60.86956522 | Z7: 21 | AA7: 91.30434783 | AB7: 182.6086957 | AC7: 138 | AD7: 600 | AE7: 1800 | AF7: 72 | AG7: 313.0434783 | AH7: 939.1304348 | AI7: 2982.608696 | AJ7: 1 | AK7: 5 | AL7: 21.73913043 | AM7: 43.47826087 | AN7: 2 | AO7: 8.695652174 | AP7: 17.39130435 | AQ7: 1 | AR7: 4.347826087 | AS7: 13.04347826 | AT7: 1 | AU7: 4.347826087 | AV7: 13.04347826 | AW7: 86.95652174 | AX7: 4 | AY7: 0 | AZ7: 0 | BA7: 8 | BB7: 24 | BC7: 0 | BD7: 0 | BE7: 24 | BF7: 2 | BG7: 0 | BH7: 3 | BI7: 3 | BJ7: 6 | BK7: 1 | BL7: 1 | BM7: 1 | BN7: 3 | BO7: 1 | BP7: 5 | BQ7: 5 | BR7: 5 | BS7: 1 | BT7: 0 | BU7: 0.0 | BV7: 0 | BW7: 0 | BX7: 0 | BY7: 11 | BZ7: 7 | CA7: 0 | CB7: 0 | CC7: 0 | CD7: 0 | CE7: 0 | CF7: 0 | CG7: 0 | CH7: 0 | CI7: 0 | CJ7: 0 | CK7: 0 | CL7: 0 | CM7: 0.0 | CN7: 0 | CO7: 0 | CP7: 0 | CQ7: 5 | CR7: 5 | CS7: 5 | CT7: 15 | CU7: 11 | DC7: 0 | DD7: 0 | DE7: 0 | DF7: 0 | DG7: 0 | DH7: 8 | DI7: 4283 | DJ7: 1
A8: Вах | B8: ГЦОиРД | C8: 1390 | D8: 23 | E8: 13 | F8: 57 | G8: 3 | H8: 1 | I8: 10 | J8: 43.5 | K8: 86.95652174 | L8: 32 | M8: 139.1304348 | N8: 278.2608696 | O8: 44 | P8: 191.3043478 | Q8: 573.9130435 | R8: 17 | S8: 73.91304348 | T8: 221.7391304 | U8: 1160.9 | V8: 1 | W8: 7 | X8: 30.43478261 | Y8: 60.86956522 | Z8: 21 | AA8: 91.30434783 | AB8: 182.6086957 | AC8: 138 | AD8: 600 | AE8: 1800 | AF8: 72 | AG8: 313.0434783 | AH8: 939.1304348 | AI8: 2982.608696 | AJ8: 1 | AK8: 5 | AL8: 21.73913043 | AM8: 43.47826087 | AN8: 2 | AO8: 8.695652174 | AP8: 17.39130435 | AQ8: 1 | AR8: 4.347826087 | AS8: 13.04347826 | AT8: 1 | AU8: 4.347826087 | AV8: 13.04347826 | AW8: 86.95652174 | AX8: 4 | AY8: 0 | AZ8: 0 | BA8: 8 | BB8: 24 | BC8: 0 | BD8: 0 | BE8: 24 | BF8: 2 | BG8: 0 | BH8: 3 | BI8: 3 | BJ8: 6 | BK8: 1 | BL8: 1 | BM8: 1 | BN8: 3 | BO8: 1 | BP8: 5 | BQ8: 5 | BR8: 5 | BS8: 1 | BT8: 0 | BU8: 0.0 | BV8: 0 | BW8: 0 | BX8: 0 | BY8: 11 | BZ8: 7 | CA8: 0 | CB8: 0 | CC8: 0 | CD8: 0 | CE8: 0 | CF8: 0 | CG8: 0 | CH8: 0 | CI8: 0 | CJ8: 0 | CK8: 0 | CL8: 0 | CM8: 0.0 | CN8: 0 | CO8: 0 | CP8: 0 | CQ8: 5 | CR8: 5 | CS8: 5 | CT8: 15 | CU8: 11 | DC8: 0 | DD8: 0 | DE8: 0 | DF8: 0 | DG8: 0 | DH8: 8 | DI8: 4283 | DJ8: 1
A9: Кир | B9: МБУДО "ЦДОД "Заречье" | C9: 4027 | D9: 149 | E9: 83 | F9: 55 | G9: 3 | I9: 11 | J9: 14.0 | K9: 22 | L9: 30 | M9: 20 | N9: 60 | O9: 33 | P9: 22 | Q9: 99 | R9: 15 | S9: 10 | T9: 45 | U9: 226.0 | W9: 44 | X9: 30 | Y9: 88 | Z9: 47 | AA9: 32 | AB9: 49 | AC9: 15 | AD9: 10 | AE9: 45 | AF9: 19 | AG9: 13 | AH9: 57 | AI9: 239 | AK9: 1 | AL9: 0.6711409396 | AM9: 2 | AN9: 2 | AO9: 1.342281879 | AP9: 4 | AQ9: 1 | AR9: 0.6711409396 | AS9: 3 | AT9: 0 | AU9: 0 | AV9: 0 | AW9: 9 | AY9: 1 | AZ9: 2 | BA9: 2 | BB9: 6 | BC9: 1 | BD9: 4 | BE9: 12 | BG9: 1 | BH9: 1 | BI9: 4 | BK9: 1 | BL9: 1 | BM9: 1 | BN9: 3 | BP9: 0 | BQ9: 0 | BR9: 0 | BS9: 0 | BT9: 27 | BU9: 0.7 | BV9: 1 | BW9: 3 | BX9: 3 | BY9: 4 | CA9: 702 | CB9: 17.43233176 | CC9: 1404 | CD9: 730 | CE9: 18.12763844 | CF9: 1460 | CG9: 394 | CH9: 9.783958282 | CI9: 1182 | CJ9: 390 | CK9: 9.684628756 | CL9: 1170 | CM9: 5216.0 | CO9: 5 | CP9: 5 | CQ9: 0 | CR9: 0 | CS9: 10 | CT9: 20 | CV9: 23 | CW9: 9 | CX9: 9 | CY9: 4 | CZ9: 84 | DB9: 1176323.59 | DC9: 6002 | DD9: 4 | DE9: 5 | DF9: 5 | DG9: 14 | DI9: 5834 | DJ9: 1
A10: Кир | B10: ЦДТТ им.В.П.Чкалова | C10: 1390 | D10: 23 | E10: 13 | F10: 57 | G10: 3 | H10: 1 | I10: 10 | J10: 43.5 | K10: 86.95652174 | L10: 32 | M10: 139.1304348 | N10: 278.2608696 | O10: 44 | P10: 191.3043478 | Q10: 573.9130435 | R10: 17 | S10: 73.91304348 | T10: 221.7391304 | U10: 1160.9 | V10: 1 | W10: 7 | X10: 30.43478261 | Y10: 60.86956522 | Z10: 21 | AA10: 91.30434783 | AB10: 182.6086957 | AC10: 138 | AD10: 600 | AE10: 1800 | AF10: 72 | AG10: 313.0434783 | AH10: 939.1304348 | AI10: 2982.608696 | AJ10: 1 | AK10: 5 | AL10: 21.73913043 | AM10: 43.47826087 | AN10: 2 | AO10: 8.695652174 | AP10: 17.39130435 | AQ10: 1 | AR10: 4.347826087 | AS10: 13.04347826 | AT10: 1 | AU10: 4.347826087 | AV10: 13.04347826 | AW10: 86.95652174 | AX10: 4 | AY10: 0 | AZ10: 0 | BA10: 8 | BB10: 24 | BC10: 0 | BD10: 0 | BE10: 24 | BF10: 2 | BG10: 0 | BH10: 3 | BI10: 3 | BJ10: 6 | BK10: 1 | BL10: 1 | BM10: 1 | BN10: 3 | BO10: 1 | BP10: 5 | BQ10: 5 | BR10: 5 | BS10: 1 | BT10: 0 | BU10: 0.0 | BV10: 0 | BW10: 0 | BX10: 0 | BY10: 11 | BZ10: 7 | CA10: 0 | CB10: 0 | CC10: 0 | CD10: 0 | CE10: 0 | CF10: 0 | CG10: 0 | CH10: 0 | CI10: 0 | CJ10: 0 | CK10: 0 | CL10: 0 | CM10: 0.0 | CN10: 0 | CO10: 0 | CP10: 0 | CQ10: 5 | CR10: 5 | CS10: 5 | CT10: 15 | CU10: 11 | DC10: 0 | DD10: 0 | DE10: 0 | DF10: 0 | DG10: 0 | DH10: 8 | DI10: 4283 | DJ10: 1
A11: Мос | B11: Шарм | C11: 1390 | D11: 23 | E11: 13 | F11: 57 | G11: 3 | H11: 1 | I11: 10 | J11: 43.5 | K11: 86.95652174 | L11: 32 | M11: 139.1304348 | N11: 278.2608696 | O11: 44 | P11: 191.3043478 | Q11: 573.9130435 | R11: 17 | S11: 73.91304348 | T11: 221.7391304 | U11: 1160.9 | V11: 1 | W11: 7 | X11: 30.43478261 | Y11: 60.86956522 | Z11: 21 | AA11: 91.30434783 | AB11: 182.6086957 | AC11: 138 | AD11: 600 | AE11: 1800 | AF11: 72 | AG11: 313.0434783 | AH11: 939.1304348 | AI11: 2982.608696 | AJ11: 1 | AK11: 5 | AL11: 21.73913043 | AM11: 43.47826087 | AN11: 2 | AO11: 8.695652174 | AP11: 17.39130435 | AQ11: 1 | AR11: 4.347826087 | AS11: 13.04347826 | AT11: 1 | AU11: 4.347826087 | AV11: 13.04347826 | AW11: 86.95652174 | AX11: 4 | AY11: 0 | AZ11: 0 | BA11: 8 | BB11: 24 | BC11: 0 | BD11: 0 | BE11: 24 | BF11: 2 | BG11: 0 | BH11: 3 | BI11: 3 | BJ11: 6 | BK11: 1 | BL11: 1 | BM11: 1 | BN11: 3 | BO11: 1 | BP11: 5 | BQ11: 5 | BR11: 5 | BS11: 1 | BT11: 0 | BU11: 0.0 | BV11: 0 | BW11: 0 | BX11: 0 | BY11: 11 | BZ11: 7 | CA11: 0 | CB11: 0 | CC11: 0 | CD11: 0 | CE11: 0 | CF11: 0 | CG11: 0 | CH11: 0 | CI11: 0 | CJ11: 0 | CK11: 0 | CL11: 0 | CM11: 0.0 | CN11: 0 | CO11: 0 | CP11: 0 | CQ11: 5 | CR11: 5 | CS11: 5 | CT11: 15 | CU11: 11 | DC11: 0 | DD11: 0 | DE11: 0 | DF11: 0 | DG11: 0 | DH11: 8 | DI11: 4283 | DJ11: 1
A12: Мос | B12: ДДЮТиЭ | C12: 1390 | D12: 23 | E12: 13 | F12: 57 | G12: 3 | H12: 1 | I12: 10 | J12: 43.5 | K12: 86.95652174 | L12: 32 | M12: 139.1304348 | N12: 278.2608696 | O12: 44 | P12: 191.3043478 | Q12: 573.9130435 | R12: 17 | S12: 73.91304348 | T12: 221.7391304 | U12: 1160.9 | V12: 1 | W12: 7 | X12: 30.43478261 | Y12: 60.86956522 | Z12: 21 | AA12: 91.30434783 | AB12: 182.6086957 | AC12: 138 | AD12: 600 | AE12: 1800 | AF12: 72 | AG12: 313.0434783 | AH12: 939.1304348 | AI12: 2982.608696 | AJ12: 1 | AK12: 5 | AL12: 21.73913043 | AM12: 43.47826087 | AN12: 2 | AO12: 8.695652174 | AP12: 17.39130435 | AQ12: 1 | AR12: 4.347826087 | AS12: 13.04347826 | AT12: 1 | AU12: 4.347826087 | AV12: 13.04347826 | AW12: 86.95652174 | AX12: 4 | AY12: 0 | AZ12: 0 | BA12: 8 | BB12: 24 | BC12: 0 | BD12: 0 | BE12: 24 | BF12: 2 | BG12: 0 | BH12: 3 | BI12: 3 | BJ12: 6 | BK12: 1 | BL12: 1 | BM12: 1 | BN12: 3 | BO12: 1 | BP12: 5 | BQ12: 5 | BR12: 5 | BS12: 1 | BT12: 0 | BU12: 0.0 | BV12: 0 | BW12: 0 | BX12: 0 | BY12: 11 | BZ12: 7 | CA12: 0 | CB12: 0 | CC12: 0 | CD12: 0 | CE12: 0 | CF12: 0 | CG12: 0 | CH12: 0 | CI12: 0 | CJ12: 0 | CK12: 0 | CL12: 0 | CM12: 0.0 | CN12: 0 | CO12: 0 | CP12: 0 | CQ12: 5 | CR12: 5 | CS12: 5 | CT12: 15 | CU12: 11 | DC12: 0 | DD12: 0 | DE12: 0 | DF12: 0 | DG12: 0 | DH12: 8 | DI12: 4283 | DJ12: 1
A13: Мос | B13: ЦВР | C13: 1390 | D13: 23 | E13: 13 | F13: 57 | G13: 3 | H13: 1 | I13: 10 | J13: 43.5 | K13: 86.95652174 | L13: 32 | M13: 139.1304348 | N13: 278.2608696 | O13: 44 | P13: 191.3043478 | Q13: 573.9130435 | R13: 17 | S13: 73.91304348 | T13: 221.7391304 | U13: 1160.9 | V13: 1 | W13: 7 | X13: 30.43478261 | Y13: 60.86956522 | Z13: 21 | AA13: 91.30434783 | AB13: 182.6086957 | AC13: 138 | AD13: 600 | AE13: 1800 | AF13: 72 | AG13: 313.0434783 | AH13: 939.1304348 | AI13: 2982.608696 | AJ13: 1 | AK13: 5 | AL13: 21.73913043 | AM13: 43.47826087 | AN13: 2 | AO13: 8.695652174 | AP13: 17.39130435 | AQ13: 1 | AR13: 4.347826087 | AS13: 13.04347826 | AT13: 1 | AU13: 4.347826087 | AV13: 13.04347826 | AW13: 86.95652174 | AX13: 4 | AY13: 0 | AZ13: 0 | BA13: 8 | BB13: 24 | BC13: 0 | BD13: 0 | BE13: 24 | BF13: 2 | BG13: 0 | BH13: 3 | BI13: 3 | BJ13: 6 | BK13: 1 | BL13: 1 | BM13: 1 | BN13: 3 | BO13: 1 | BP13: 5 | BQ13: 5 | BR13: 5 | BS13: 1 | BT13: 0 | BU13: 0.0 | BV13: 0 | BW13: 0 | BX13: 0 | BY13: 11 | BZ13: 7 | CA13: 0 | CB13: 0 | CC13: 0 | CD13: 0 | CE13: 0 | CF13: 0 | CG13: 0 | CH13: 0 | CI13: 0 | CJ13: 0 | CK13: 0 | CL13: 0 | CM13: 0.0 | CN13: 0 | CO13: 0 | CP13: 0 | CQ13: 5 | CR13: 5 | CS13: 5 | CT13: 15 | CU13: 11 | DC13: 0 | DD13: 0 | DE13: 0 | DF13: 0 | DG13: 0 | DH13: 8 | DI13: 4283 | DJ13: 1
A14: Н-С | B14: Простор | C14: 1390 | D14: 23 | E14: 13 | F14: 57 | G14: 3 | H14: 1 | I14: 10 | J14: 43.5 | K14: 86.95652174 | L14: 32 | M14: 139.1304348 | N14: 278.2608696 | O14: 44 | P14: 191.3043478 | Q14: 573.9130435 | R14: 17 | S14: 73.91304348 | T14: 221.7391304 | U14: 1160.9 | V14: 1 | W14: 7 | X14: 30.43478261 | Y14: 60.86956522 | Z14: 21 | AA14: 91.30434783 | AB14: 182.6086957 | AC14: 138 | AD14: 600 | AE14: 1800 | AF14: 72 | AG14: 313.0434783 | AH14: 939.1304348 | AI14: 2982.608696 | AJ14: 1 | AK14: 5 | AL14: 21.73913043 | AM14: 43.47826087 | AN14: 2 | AO14: 8.695652174 | AP14: 17.39130435 | AQ14: 1 | AR14: 4.347826087 | AS14: 13.04347826 | AT14: 1 | AU14: 4.347826087 | AV14: 13.04347826 | AW14: 86.95652174 | AX14: 4 | AY14: 0 | AZ14: 0 | BA14: 8 | BB14: 24 | BC14: 0 | BD14: 0 | BE14: 24 | BF14: 2 | BG14: 0 | BH14: 3 | BI14: 3 | BJ14: 6 | BK14: 1 | BL14: 1 | BM14: 1 | BN14: 3 | BO14: 1 | BP14: 5 | BQ14: 5 | BR14: 5 | BS14: 1 | BT14: 0 | BU14: 0.0 | BV14: 0 | BW14: 0 | BX14: 0 | BY14: 11 | BZ14: 7 | CA14: 0 | CB14: 0 | CC14: 0 | CD14: 0 | CE14: 0 | CF14: 0 | CG14: 0 | CH14: 0 | CI14: 0 | CJ14: 0 | CK14: 0 | CL14: 0 | CM14: 0.0 | CN14: 0 | CO14: 0 | CP14: 0 | CQ14: 5 | CR14: 5 | CS14: 5 | CT14: 15 | CU14: 11 | DC14: 0 | DD14: 0 | DE14: 0 | DF14: 0 | DG14: 0 | DH14: 8 | DI14: 4283 | DJ14: 1
A15: Н-С | B15: ЦДТ | C15: 1390 | D15: 23 | E15: 13 | F15: 57 | G15: 3 | H15: 1 | I15: 10 | J15: 43.5 | K15: 86.95652174 | L15: 32 | M15: 139.1304348 | N15: 278.2608696 | O15: 44 | P15: 191.3043478 | Q15: 573.9130435 | R15: 17 | S15: 73.91304348 | T15: 221.7391304 | U15: 1160.9 | V15: 1 | W15: 7 | X15: 30.43478261 | Y15: 60.86956522 | Z15: 21 | AA15: 91.30434783 | AB15: 182.6086957 | AC15: 138 | AD15: 600 | AE15: 1800 | AF15: 72 | AG15: 313.0434783 | AH15: 939.1304348 | AI15: 2982.608696 | AJ15: 1 | AK15: 5 | AL15: 21.73913043 | AM15: 43.47826087 | AN15: 2 | AO15: 8.695652174 | AP15: 17.39130435 | AQ15: 1 | AR15: 4.347826087 | AS15: 13.04347826 | AT15: 1 | AU15: 4.347826087 | AV15: 13.04347826 | AW15: 86.95652174 | AX15: 4 | AY15: 0 | AZ15: 0 | BA15: 8 | BB15: 24 | BC15: 0 | BD15: 0 | BE15: 24 | BF15: 2 | BG15: 0 | BH15: 3 | BI15: 3 | BJ15: 6 | BK15: 1 | BL15: 1 | BM15: 1 | BN15: 3 | BO15: 1 | BP15: 5 | BQ15: 5 | BR15: 5 | BS15: 1 | BT15: 0 | BU15: 0.0 | BV15: 0 | BW15: 0 | BX15: 0 | BY15: 11 | BZ15: 7 | CA15: 0 | CB15: 0 | CC15: 0 | CD15: 0 | CE15: 0 | CF15: 0 | CG15: 0 | CH15: 0 | CI15: 0 | CJ15: 0 | CK15: 0 | CL15: 0 | CM15: 0.0 | CN15: 0 | CO15: 0 | CP15: 0 | CQ15: 5 | CR15: 5 | CS15: 5 | CT15: 15 | CU15: 11 | DC15: 0 | DD15: 0 | DE15: 0 | DF15: 0 | DG15: 0 | DH15: 8 | DI15: 4283 | DJ15: 1
A16: Н-С | B16: ЦВР | C16: 1390 | D16: 23 | E16: 13 | F16: 57 | G16: 3 | H16: 1 | I16: 10 | J16: 43.5 | K16: 86.95652174 | L16: 32 | M16: 139.1304348 | N16: 278.2608696 | O16: 44 | P16: 191.3043478 | Q16: 573.9130435 | R16: 17 | S16: 73.91304348 | T16: 221.7391304 | U16: 1160.9 | V16: 1 | W16: 7 | X16: 30.43478261 | Y16: 60.86956522 | Z16: 21 | AA16: 91.30434783 | AB16: 182.6086957 | AC16: 138 | AD16: 600 | AE16: 1800 | AF16: 72 | AG16: 313.0434783 | AH16: 939.1304348 | AI16: 2982.608696 | AJ16: 1 | AK16: 5 | AL16: 21.73913043 | AM16: 43.47826087 | AN16: 2 | AO16: 8.695652174 | AP16: 17.39130435 | AQ16: 1 | AR16: 4.347826087 | AS16: 13.04347826 | AT16: 1 | AU16: 4.347826087 | AV16: 13.04347826 | AW16: 86.95652174 | AX16: 4 | AY16: 0 | AZ16: 0 | BA16: 8 | BB16: 24 | BC16: 0 | BD16: 0 | BE16: 24 | BF16: 2 | BG16: 0 | BH16: 3 | BI16: 3 | BJ16: 6 | BK16: 1 | BL16: 1 | BM16: 1 | BN16: 3 | BO16: 1 | BP16: 5 | BQ16: 5 | BR16: 5 | BS16: 1 | BT16: 0 | BU16: 0.0 | BV16: 0 | BW16: 0 | BX16: 0 | BY16: 11 | BZ16: 7 | CA16: 0 | CB16: 0 | CC16: 0 | CD16: 0 | CE16: 0 | CF16: 0 | CG16: 0 | CH16: 0 | CI16: 0 | CJ16: 0 | CK16: 0 | CL16: 0 | CM16: 0.0 | CN16: 0 | CO16: 0 | CP16: 0 | CQ16: 5 | CR16: 5 | CS16: 5 | CT16: 15 | CU16: 11 | DC16: 0 | DD16: 0 | DE16: 0 | DF16: 0 | DG16: 0 | DH16: 8 | DI16: 4283 | DJ16: 1
A17: Прив | B17: "Молодость" | C17: 1390 | D17: 23 | E17: 13 | F17: 57 | G17: 3 | H17: 1 | I17: 10 | J17: 43.5 | K17: 86.95652174 | L17: 32 | M17: 139.1304348 | N17: 278.2608696 | O17: 44 | P17: 191.3043478 | Q17: 573.9130435 | R17: 17 | S17: 73.91304348 | T17: 221.7391304 | U17: 1160.9 | V17: 1 | W17: 7 | X17: 30.43478261 | Y17: 60.86956522 | Z17: 21 | AA17: 91.30434783 | AB17: 182.6086957 | AC17: 138 | AD17: 600 | AE17: 1800 | AF17: 72 | AG17: 313.0434783 | AH17: 939.1304348 | AI17: 2982.608696 | AJ17: 1 | AK17: 5 | AL17: 21.73913043 | AM17: 43.47826087 | AN17: 2 | AO17: 8.695652174 | AP17: 17.39130435 | AQ17: 1 | AR17: 4.347826087 | AS17: 13.04347826 | AT17: 1 | AU17: 4.347826087 | AV17: 13.04347826 | AW17: 86.95652174 | AX17: 4 | AY17: 0 | AZ17: 0 | BA17: 8 | BB17: 24 | BC17: 0 | BD17: 0 | BE17: 24 | BF17: 2 | BG17: 0 | BH17: 3 | BI17: 3 | BJ17: 6 | BK17: 1 | BL17: 1 | BM17: 1 | BN17: 3 | BO17: 1 | BP17: 5 | BQ17: 5 | BR17: 5 | BS17: 1 | BT17: 0 | BU17: 0.0 | BV17: 0 | BW17: 0 | BX17: 0 | BY17: 11 | BZ17: 7 | CA17: 0 | CB17: 0 | CC17: 0 | CD17: 0 | CE17: 0 | CF17: 0 | CG17: 0 | CH17: 0 | CI17: 0 | CJ17: 0 | CK17: 0 | CL17: 0 | CM17: 0.0 | CN17: 0 | CO17: 0 | CP17: 0 | CQ17: 5 | CR17: 5 | CS17: 5 | CT17: 15 | CU17: 11 | DC17: 0 | DD17: 0 | DE17: 0 | DF17: 0 | DG17: 0 | DH17: 8 | DI17: 4283 | DJ17: 1
A18: Прив | B18: ЦВР | C18: 1390 | D18: 23 | E18: 13 | F18: 57 | G18: 3 | H18: 1 | I18: 10 | J18: 43.5 | K18: 86.95652174 | L18: 32 | M18: 139.1304348 | N18: 278.2608696 | O18: 44 | P18: 191.3043478 | Q18: 573.9130435 | R18: 17 | S18: 73.91304348 | T18: 221.7391304 | U18: 1160.9 | V18: 1 | W18: 7 | X18: 30.43478261 | Y18: 60.86956522 | Z18: 21 | AA18: 91.30434783 | AB18: 182.6086957 | AC18: 138 | AD18: 600 | AE18: 1800 | AF18: 72 | AG18: 313.0434783 | AH18: 939.1304348 | AI18: 2982.608696 | AJ18: 1 | AK18: 5 | AL18: 21.73913043 | AM18: 43.47826087 | AN18: 2 | AO18: 8.695652174 | AP18: 17.39130435 | AQ18: 1 | AR18: 4.347826087 | AS18: 13.04347826 | AT18: 1 | AU18: 4.347826087 | AV18: 13.04347826 | AW18: 86.95652174 | AX18: 4 | AY18: 0 | AZ18: 0 | BA18: 8 | BB18: 24 | BC18: 0 | BD18: 0 | BE18: 24 | BF18: 2 | BG18: 0 | BH18: 3 | BI18: 3 | BJ18: 6 | BK18: 1 | BL18: 1 | BM18: 1 | BN18: 3 | BO18: 1 | BP18: 5 | BQ18: 5 | BR18: 5 | BS18: 1 | BT18: 0 | BU18: 0.0 | BV18: 0 | BW18: 0 | BX18: 0 | BY18: 11 | BZ18: 7 | CA18: 0 | CB18: 0 | CC18: 0 | CD18: 0 | CE18: 0 | CF18: 0 | CG18: 0 | CH18: 0 | CI18: 0 | CJ18: 0 | CK18: 0 | CL18: 0 | CM18: 0.0 | CN18: 0 | CO18: 0 | CP18: 0 | CQ18: 5 | CR18: 5 | CS18: 5 | CT18: 15 | CU18: 11 | DC18: 0 | DD18: 0 | DE18: 0 | DF18: 0 | DG18: 0 | DH18: 8 | DI18: 4283 | DJ18: 1
A19: Прив | B19: ЦДТ "Олимп" | C19: 1390 | D19: 23 | E19: 13 | F19: 57 | G19: 3 | H19: 1 | I19: 10 | J19: 43.5 | K19: 86.95652174 | L19: 32 | M19: 139.1304348 | N19: 278.2608696 | O19: 44 | P19: 191.3043478 | Q19: 573.9130435 | R19: 17 | S19: 73.91304348 | T19: 221.7391304 | U19: 1160.9 | V19: 1 | W19: 7 | X19: 30.43478261 | Y19: 60.86956522 | Z19: 21 | AA19: 91.30434783 | AB19: 182.6086957 | AC19: 138 | AD19: 600 | AE19: 1800 | AF19: 72 | AG19: 313.0434783 | AH19: 939.1304348 | AI19: 2982.608696 | AJ19: 1 | AK19: 5 | AL19: 21.73913043 | AM19: 43.47826087 | AN19: 2 | AO19: 8.695652174 | AP19: 17.39130435 | AQ19: 1 | AR19: 4.347826087 | AS19: 13.04347826 | AT19: 1 | AU19: 4.347826087 | AV19: 13.04347826 | AW19: 86.95652174 | AX19: 4 | AY19: 0 | AZ19: 0 | BA19: 8 | BB19: 24 | BC19: 0 | BD19: 0 | BE19: 24 | BF19: 2 | BG19: 0 | BH19: 3 | BI19: 3 | BJ19: 6 | BK19: 1 | BL19: 1 | BM19: 1 | BN19: 3 | BO19: 1 | BP19: 5 | BQ19: 5 | BR19: 5 | BS19: 1 | BT19: 0 | BU19: 0.0 | BV19: 0 | BW19: 0 | BX19: 0 | BY19: 11 | BZ19: 7 | CA19: 0 | CB19: 0 | CC19: 0 | CD19: 0 | CE19: 0 | CF19: 0 | CG19: 0 | CH19: 0 | CI19: 0 | CJ19: 0 | CK19: 0 | CL19: 0 | CM19: 0.0 | CN19: 0 | CO19: 0 | CP19: 0 | CQ19: 5 | CR19: 5 | CS19: 5 | CT19: 15 | CU19: 11 | DC19: 0 | DD19: 0 | DE19: 0 | DF19: 0 | DG19: 0 | DH19: 8 | DI19: 4283 | DJ19: 1
A20: Сов | B20: "Танкодром" | C20: 1390 | D20: 23 | E20: 13 | F20: 57 | G20: 3 | H20: 1 | I20: 10 | J20: 43.5 | K20: 86.95652174 | L20: 32 | M20: 139.1304348 | N20: 278.2608696 | O20: 44 | P20: 191.3043478 | Q20: 573.9130435 | R20: 17 | S20: 73.91304348 | T20: 221.7391304 | U20: 1160.9 | V20: 1 | W20: 7 | X20: 30.43478261 | Y20: 60.86956522 | Z20: 21 | AA20: 91.30434783 | AB20: 182.6086957 | AC20: 138 | AD20: 600 | AE20: 1800 | AF20: 72 | AG20: 313.0434783 | AH20: 939.1304348 | AI20: 2982.608696 | AJ20: 1 | AK20: 5 | AL20: 21.73913043 | AM20: 43.47826087 | AN20: 2 | AO20: 8.695652174 | AP20: 17.39130435 | AQ20: 1 | AR20: 4.347826087 | AS20: 13.04347826 | AT20: 1 | AU20: 4.347826087 | AV20: 13.04347826 | AW20: 86.95652174 | AX20: 4 | AY20: 0 | AZ20: 0 | BA20: 8 | BB20: 24 | BC20: 0 | BD20: 0 | BE20: 24 | BF20: 2 | BG20: 0 | BH20: 3 | BI20: 3 | BJ20: 6 | BK20: 1 | BL20: 1 | BM20: 1 | BN20: 3 | BO20: 1 | BP20: 5 | BQ20: 5 | BR20: 5 | BS20: 1 | BT20: 0 | BU20: 0.0 | BV20: 0 | BW20: 0 | BX20: 0 | BY20: 11 | BZ20: 7 | CA20: 0 | CB20: 0 | CC20: 0 | CD20: 0 | CE20: 0 | CF20: 0 | CG20: 0 | CH20: 0 | CI20: 0 | CJ20: 0 | CK20: 0 | CL20: 0 | CM20: 0.0 | CN20: 0 | CO20: 0 | CP20: 0 | CQ20: 5 | CR20: 5 | CS20: 5 | CT20: 15 | CU20: 11 | DC20: 0 | DD20: 0 | DE20: 0 | DF20: 0 | DG20: 0 | DH20: 8 | DI20: 4283 | DJ20: 1
A21: Сов | B21: ЦДТ "Азино" | C21: 1390 | D21: 23 | E21: 13 | F21: 57 | G21: 3 | H21: 1 | I21: 10 | J21: 43.5 | K21: 86.95652174 | L21: 32 | M21: 139.1304348 | N21: 278.2608696 | O21: 44 | P21: 191.3043478 | Q21: 573.9130435 | R21: 17 | S21: 73.91304348 | T21: 221.7391304 | U21: 1160.9 | V21: 1 | W21: 7 | X21: 30.43478261 | Y21: 60.86956522 | Z21: 21 | AA21: 91.30434783 | AB21: 182.6086957 | AC21: 138 | AD21: 600 | AE21: 1800 | AF21: 72 | AG21: 313.0434783 | AH21: 939.1304348 | AI21: 2982.608696 | AJ21: 1 | AK21: 5 | AL21: 21.73913043 | AM21: 43.47826087 | AN21: 2 | AO21: 8.695652174 | AP21: 17.39130435 | AQ21: 1 | AR21: 4.347826087 | AS21: 13.04347826 | AT21: 1 | AU21: 4.347826087 | AV21: 13.04347826 | AW21: 86.95652174 | AX21: 4 | AY21: 0 | AZ21: 0 | BA21: 8 | BB21: 24 | BC21: 0 | BD21: 0 | BE21: 24 | BF21: 2 | BG21: 0 | BH21: 3 | BI21: 3 | BJ21: 6 | BK21: 1 | BL21: 1 | BM21: 1 | BN21: 3 | BO21: 1 | BP21: 5 | BQ21: 5 | BR21: 5 | BS21: 1 | BT21: 0 | BU21: 0.0 | BV21: 0 | BW21: 0 | BX21: 0 | BY21: 11 | BZ21: 7 | CA21: 0 | CB21: 0 | CC21: 0 | CD21: 0 | CE21: 0 | CF21: 0 | CG21: 0 | CH21: 0 | CI21: 0 | CJ21: 0 | CK21: 0 | CL21: 0 | CM21: 0.0 | CN21: 0 | CO21: 0 | CP21: 0 | CQ21: 5 | CR21: 5 | CS21: 5 | CT21: 15 | CU21: 11 | DC21: 0 | DD21: 0 | DE21: 0 | DF21: 0 | DG21: 0 | DH21: 8 | DI21: 4283 | DJ21: 1
A22: Сов | B22: ЦДТ "Дербышки" | C22: 1390 | D22: 23 | E22: 13 | F22: 57 | G22: 3 | H22: 1 | I22: 10 | J22: 43.5 | K22: 86.95652174 | L22: 32 | M22: 139.1304348 | N22: 278.2608696 | O22: 44 | P22: 191.3043478 | Q22: 573.9130435 | R22: 17 | S22: 73.91304348 | T22: 221.7391304 | U22: 1160.9 | V22: 1 | W22: 7 | X22: 30.43478261 | Y22: 60.86956522 | Z22: 21 | AA22: 91.30434783 | AB22: 182.6086957 | AC22: 138 | AD22: 600 | AE22: 1800 | AF22: 72 | AG22: 313.0434783 | AH22: 939.1304348 | AI22: 2982.608696 | AJ22: 1 | AK22: 5 | AL22: 21.73913043 | AM22: 43.47826087 | AN22: 2 | AO22: 8.695652174 | AP22: 17.39130435 | AQ22: 1 | AR22: 4.347826087 | AS22: 13.04347826 | AT22: 1 | AU22: 4.347826087 | AV22: 13.04347826 | AW22: 86.95652174 | AX22: 4 | AY22: 0 | AZ22: 0 | BA22: 8 | BB22: 24 | BC22: 0 | BD22: 0 | BE22: 24 | BF22: 2 | BG22: 0 | BH22: 3 | BI22: 3 | BJ22: 6 | BK22: 1 | BL22: 1 | BM22: 1 | BN22: 3 | BO22: 1 | BP22: 5 | BQ22: 5 | BR22: 5 | BS22: 1 | BT22: 0 | BU22: 0.0 | BV22: 0 | BW22: 0 | BX22: 0 | BY22: 11 | BZ22: 7 | CA22: 0 | CB22: 0 | CC22: 0 | CD22: 0 | CE22: 0 | CF22: 0 | CG22: 0 | CH22: 0 | CI22: 0 | CJ22: 0 | CK22: 0 | CL22: 0 | CM22: 0.0 | CN22: 0 | CO22: 0 | CP22: 0 | CQ22: 5 | CR22: 5 | CS22: 5 | CT22: 15 | CU22: 11 | DC22: 0 | DD22: 0 | DE22: 0 | DF22: 0 | DG22: 0 | DH22: 8 | DI22: 4283 | DJ22: 1
A23: Сов | B23: ЦДТ "ДА" | C23: 1390 | D23: 23 | E23: 13 | F23: 57 | G23: 3 | H23: 1 | I23: 10 | J23: 43.5 | K23: 86.95652174 | L23: 32 | M23: 139.1304348 | N23: 278.2608696 | O23: 44 | P23: 191.3043478 | Q23: 573.9130435 | R23: 17 | S23: 73.91304348 | T23: 221.7391304 | U23: 1160.9 | V23: 1 | W23: 7 | X23: 30.43478261 | Y23: 60.86956522 | Z23: 21 | AA23: 91.30434783 | AB23: 182.6086957 | AC23: 138 | AD23: 600 | AE23: 1800 | AF23: 72 | AG23: 313.0434783 | AH23: 939.1304348 | AI23: 2982.608696 | AJ23: 1 | AK23: 5 | AL23: 21.73913043 | AM23: 43.47826087 | AN23: 2 | AO23: 8.695652174 | AP23: 17.39130435 | AQ23: 1 | AR23: 4.347826087 | AS23: 13.04347826 | AT23: 1 | AU23: 4.347826087 | AV23: 13.04347826 | AW23: 86.95652174 | AX23: 4 | AY23: 0 | AZ23: 0 | BA23: 8 | BB23: 24 | BC23: 0 | BD23: 0 | BE23: 24 | BF23: 2 | BG23: 0 | BH23: 3 | BI23: 3 | BJ23: 6 | BK23: 1 | BL23: 1 | BM23: 1 | BN23: 3 | BO23: 1 | BP23: 5 | BQ23: 5 | BR23: 5 | BS23: 1 | BT23: 0 | BU23: 0.0 | BV23: 0 | BW23: 0 | BX23: 0 | BY23: 11 | BZ23: 7 | CA23: 0 | CB23: 0 | CC23: 0 | CD23: 0 | CE23: 0 | CF23: 0 | CG23: 0 | CH23: 0 | CI23: 0 | CJ23: 0 | CK23: 0 | CL23: 0 | CM23: 0.0 | CN23: 0 | CO23: 0 | CP23: 0 | CQ23: 5 | CR23: 5 | CS23: 5 | CT23: 15 | CU23: 11 | DC23: 0 | DD23: 0 | DE23: 0 | DF23: 0 | DG23: 0 | DH23: 8 | DI23: 4283 | DJ23: 1
A24: Сов | B24: ГДЭБЦ | C24: 1390 | D24: 23 | E24: 13 | F24: 57 | G24: 3 | H24: 1 | I24: 10 | J24: 43.5 | K24: 86.95652174 | L24: 32 | M24: 139.1304348 | N24: 278.2608696 | O24: 44 | P24: 191.3043478 | Q24: 573.9130435 | R24: 17 | S24: 73.91304348 | T24: 221.7391304 | U24: 1160.9 | V24: 1 | W24: 7 | X24: 30.43478261 | Y24: 60.86956522 | Z24: 21 | AA24: 91.30434783 | AB24: 182.6086957 | AC24: 138 | AD24: 600 | AE24: 1800 | AF24: 72 | AG24: 313.0434783 | AH24: 939.1304348 | AI24: 2982.608696 | AJ24: 1 | AK24: 5 | AL24: 21.73913043 | AM24: 43.47826087 | AN24: 2 | AO24: 8.695652174 | AP24: 17.39130435 | AQ24: 1 | AR24: 4.347826087 | AS24: 13.04347826 | AT24: 1 | AU24: 4.347826087 | AV24: 13.04347826 | AW24: 86.95652174 | AX24: 4 | AY24: 0 | AZ24: 0 | BA24: 8 | BB24: 24 | BC24: 0 | BD24: 0 | BE24: 24 | BF24: 2 | BG24: 0 | BH24: 3 | BI24: 3 | BJ24: 6 | BK24: 1 | BL24: 1 | BM24: 1 | BN24: 3 | BO24: 1 | BP24: 5 | BQ24: 5 | BR24: 5 | BS24: 1 | BT24: 0 | BU24: 0.0 | BV24: 0 | BW24: 0 | BX24: 0 | BY24: 11 | BZ24: 7 | CA24: 0 | CB24: 0 | CC24: 0 | CD24: 0 | CE24: 0 | CF24: 0 | CG24: 0 | CH24: 0 | CI24: 0 | CJ24: 0 | CK24: 0 | CL24: 0 | CM24: 0.0 | CN24: 0 | CO24: 0 | CP24: 0 | CQ24: 5 | CR24: 5 | CS24: 5 | CT24: 15 | CU24: 11 | DC24: 0 | DD24: 0 | DE24: 0 | DF24: 0 | DG24: 0 | DH24: 8 | DI24: 4283 | DJ24: 1
A25: Сов | B25: СДЮТиЭ | C25: 1390 | D25: 23 | E25: 13 | F25: 57 | G25: 3 | H25: 1 | I25: 10 | J25: 43.5 | K25: 86.95652174 | L25: 32 | M25: 139.1304348 | N25: 278.2608696 | O25: 44 | P25: 191.3043478 | Q25: 573.9130435 | R25: 17 | S25: 73.91304348 | T25: 221.7391304 | U25: 1160.9 | V25: 1 | W25: 7 | X25: 30.43478261 | Y25: 60.86956522 | Z25: 21 | AA25: 91.30434783 | AB25: 182.6086957 | AC25: 138 | AD25: 600 | AE25: 1800 | AF25: 72 | AG25: 313.0434783 | AH25: 939.1304348 | AI25: 2982.608696 | AJ25: 1 | AK25: 5 | AL25: 21.73913043 | AM25: 43.47826087 | AN25: 2 | AO25: 8.695652174 | AP25: 17.39130435 | AQ25: 1 | AR25: 4.347826087 | AS25: 13.04347826 | AT25: 1 | AU25: 4.347826087 | AV25: 13.04347826 | AW25: 86.95652174 | AX25: 4 | AY25: 0 | AZ25: 0 | BA25: 8 | BB25: 24 | BC25: 0 | BD25: 0 | BE25: 24 | BF25: 2 | BG25: 0 | BH25: 3 | BI25: 3 | BJ25: 6 | BK25: 1 | BL25: 1 | BM25: 1 | BN25: 3 | BO25: 1 | BP25: 5 | BQ25: 5 | BR25: 5 | BS25: 1 | BT25: 0 | BU25: 0.0 | BV25: 0 | BW25: 0 | BX25: 0 | BY25: 11 | BZ25: 7 | CA25: 0 | CB25: 0 | CC25: 0 | CD25: 0 | CE25: 0 | CF25: 0 | CG25: 0 | CH25: 0 | CI25: 0 | CJ25: 0 | CK25: 0 | CL25: 0 | CM25: 0.0 | CN25: 0 | CO25: 0 | CP25: 0 | CQ25: 5 | CR25: 5 | CS25: 5 | CT25: 15 | CU25: 11 | DC25: 0 | DD25: 0 | DE25: 0 | DF25: 0 | DG25: 0 | DH25: 8 | DI25: 4283 | DJ25: 1
